fUSD/lending_fUSD_20250103
["ID","MTS","AMOUNT","RATE_DAILY","PERIOD"]
[347567532,1735920647520,-500.0,9.865e-05,2]
[347567535,1735920647530,-151.85,9.865e-05,2]
[347567537,1735920647539,-1890.49,9.865e-05,2]
[347567539,1735920647550,-500.0,9.865e-05,2]
[347567541,1735920647559,-500.0,9.865e-05,2]
[347567542,1735920647568,-500.0,9.865e-05,2]
[347567545,1735920647578,-1003.54,9.865e-05,2]
[347567547,1735920647588,-500.0,9.865e-05,2]
[347567548,1735920647597,-500.0,9.865e-05,2]
[347567551,1735920647608,-500.0,9.865e-05,2]
[347567553,1735920647618,-500.0,9.865e-05,2]
[347567554,1735920647628,-500.0,9.865e-05,2]
[347567556,1735920647638,-500.0,9.865e-05,2]
[347567558,1735920647648,-151.95,9.865e-05,2]
[347567561,1735920647658,-1000.65,9.865e-05,2]
[347567563,1735920647671,-500.0,9.865e-05,2]
[347567564,1735920647680,-500.0,9.865e-05,2]
[347567566,1735920647690,-500.0,9.865e-05,2]
[347567568,1735920647699,-1907.21,9.865e-05,2]
[347567570,1735920647708,-500.0,9.865e-05,2]
[347567572,1735920647718,-500.0,9.865e-05,2]
[347567574,1735920647729,-219.29,9.865e-05,2]
[347567577,1735920647738,-500.0,9.865e-05,2]
[347567578,1735920647747,-582.22,9.865e-05,2]
[347567580,1735920647756,-500.0,9.865e-05,2]
[347567582,1735920647766,-500.0,9.865e-05,2]
[347567584,1735920647774,-500.0,9.865e-05,2]
[347567586,1735920647783,-500.0,9.865e-05,2]
[347567588,1735920647793,-2353.53,9.865e-05,2]
[347567590,1735920647802,-486.3,9.865e-05,2]
[347567592,1735920647812,-1965.81,9.865e-05,2]
[347567594,1735920647821,-3206.61,9.865e-05,2]
[347567597,1735920647832,-473.04,9.865e-05,2]
[347567599,1735920647844,-500.0,9.865e-05,2]
[347567601,1735920647859,-272.69,9.865e-05,2]
[347567604,1735920647872,-500.0,9.865e-05,2]
[347567606,1735920647883,-500.0,9.865e-05,2]
[347567608,1735920647894,-500.0,9.865e-05,2]
[347567610,1735920647906,-500.0,9.865e-05,2]
[347567613,1735920647921,-294.17,9.865e-05,2]
[347567615,1735920647933,-500.0,9.865e-05,2]
[347567617,1735920647946,-194.35,9.865e-05,2]
[347567619,1735920647959,-798.62,9.865e-05,2]
[347567622,1735920647971,-500.0,9.865e-05,2]
[347567624,1735920647985,-205.92,9.865e-05,2]
[347567626,1735920647998,-500.0,9.865e-05,2]
[347567629,1735920648010,-500.0,9.865e-05,2]
[347567631,1735920648022,-500.0,9.866e-05,2]
[347567633,1735920648032,-254.49,9.866e-05,2]
[347567635,1735920648044,-500.0,9.866e-05,2]
[347567638,1735920648058,-469.5,9.866e-05,2]
[347567640,1735920648070,-500.0,9.866e-05,2]
[347567642,1735920648083,-157.99,9.866e-05,2]
[347567644,1735920648096,-627.29,9.866e-05,2]
[347567647,1735920648108,-500.0,9.866e-05,2]
[347567649,1735920648120,-500.0,9.866e-05,2]
[347567651,1735920648133,-366.56,9.866e-05,2]
[347567654,1735920648146,-500.0,9.866e-05,2]
[347567656,1735920648158,-500.0,9.866e-05,2]
[347567658,1735920648172,-395.8664817,9.866e-05,2]
[347567661,1735920648187,-500.0,9.866e-05,2]
[347567663,1735920648201,-500.0,9.866e-05,2]
[347567665,1735920648215,-365.25,9.866e-05,2]
[347567667,1735920648229,-377.16,9.866e-05,2]
[347567669,1735920648241,-237.01,9.866e-05,2]
[347567672,1735920648254,-500.0,9.866e-05,2]
[347567674,1735920648267,-500.0,9.866e-05,2]
[347567676,1735920648280,-500.0,9.866e-05,2]
[347567679,1735920648294,-179.99,9.866e-05,2]
[347567681,1735920648306,-500.0,9.866e-05,2]
[347567683,1735920648319,-500.0,9.866e-05,2]
[347567685,1735920648330,-500.0,9.866e-05,2]
[347567687,1735920648340,-500.0,9.866e-05,2]
[347567689,1735920648352,-500.0,9.866e-05,2]
[347567691,1735920648363,-500.0,9.866e-05,2]
[347567694,1735920648379,-576.5,9.866e-05,2]
[347567696,1735920648393,-849.16,9.866e-05,2]
[347567698,1735920648404,-864.54,9.866e-05,2]
[347567701,1735920648416,-1768.71,9.866e-05,2]
[347567703,1735920648427,-500.0,9.866e-05,2]
[347567705,1735920648438,-979.98,9.866e-05,2]
[347567707,1735920648451,-3231.62,9.866e-05,2]
[347567709,1735920648464,-1050.79,9.866e-05,2]
[347567712,1735920648479,-1684.23,9.866e-05,2]
[347567714,1735920648492,-1281.84,9.866e-05,2]
[347567716,1735920648503,-786.12,9.866e-05,2]
[347567718,1735920648514,-500.0,9.866e-05,2]
[347567720,1735920648525,-1902.76,9.866e-05,2]
[347567722,1735920648538,-1794.52,9.867e-05,2]
[347567724,1735920648549,-2214.82,9.867e-05,2]
[347567727,1735920648563,-3042.37,9.867e-05,2]
[347567729,1735920648573,-500.0,9.867e-05,2]
[347567730,1735920648585,-630.43,9.867e-05,2]
[347567731,1735920648597,-626.51,9.867e-05,2]
[347567732,1735920648609,-500.0,9.867e-05,2]
[347567733,1735920648621,-500.0,9.867e-05,2]
[347567734,1735920648633,-507.2,9.867e-05,2]
[347567735,1735920648645,-500.0,9.867e-05,2]
[347567736,1735920648658,-155.81,9.867e-05,2]
[347567737,1735920648671,-500.0,9.867e-05,2]
[347567738,1735920648683,-763.22,9.867e-05,2]
[347567740,1735920648696,-500.0,9.867e-05,2]
[347567741,1735920648706,-500.0,9.867e-05,2]
[347567744,1735920648718,-500.0,9.867e-05,2]
[347567746,1735920648730,-500.0,9.867e-05,2]
[347567748,1735920648742,-500.0,9.867e-05,2]
[347567750,1735920648753,-500.0,9.867e-05,2]
[347567752,1735920648765,-768.06,9.867e-05,2]
[347567755,1735920648776,-500.0,9.867e-05,2]
[347567757,1735920648788,-1863.65,9.867e-05,2]
[347567759,1735920648799,-500.0,9.867e-05,2]
[347567761,1735920648810,-500.0,9.867e-05,2]
[347567763,1735920648822,-760.86,9.867e-05,2]
[347567765,1735920648834,-500.0,9.867e-05,2]
[347567768,1735920648846,-500.0,9.867e-05,2]
[347567770,1735920648859,-1000.0,9.867e-05,2]
[347567772,1735920648870,-500.0,9.867e-05,2]
[347567774,1735920648882,-153.83,9.867e-05,2]
[347567776,1735920648893,-500.0,9.867e-05,2]
[347567778,1735920648904,-500.0,9.867e-05,2]
[347567781,1735920648917,-660.62,9.867e-05,2]
[347567783,1735920648928,-1269.03,9.867e-05,2]
[347567785,1735920648939,-500.0,9.867e-05,2]
[347567787,1735920648951,-617.59,9.867e-05,2]
[347567789,1735920648962,-604.24206201,9.867e-05,2]
[347567791,1735920648975,-500.0,9.867e-05,2]
[347567794,1735920648987,-500.0,9.867e-05,2]
[347567796,1735920648999,-1663.26,9.867e-05,2]
[347567798,1735920649011,-500.0,9.867e-05,2]
[347567800,1735920649023,-422.03,9.867e-05,2]
[347567802,1735920649035,-500.0,9.867e-05,2]
[347567805,1735920649046,-583.96,9.867e-05,2]
[347567807,1735920649058,-682.7,9.867e-05,2]
[347567809,1735920649069,-1892.32,9.867e-05,2]
[347567811,1735920649081,-883.1,9.867e-05,2]
[347567814,1735920649093,-544.613,9.875e-05,2]
[347567816,1735920649104,-387.812,9.875e-05,2]
[347567818,1735920649114,-1500.0,9.897e-05,2]
[347567820,1735920649126,-700.0,9.9e-05,3]
[347567822,1735920649138,-500.0,9.916e-05,2]
[347567824,1735920649149,-419.23634141,9.916e-05,2]
[347567827,1735920649160,-151.99668455,9.916e-05,2]
[347567829,1735920649174,-504.9994691,9.952e-05,2]
[347567831,1735920649190,-1266.0,9.958e-05,2]
[347567833,1735920649202,-1636.224,9.958e-05,2]
[347567835,1735920649215,-536.0,9.958e-05,2]
[347567838,1735920649226,-2385.2043,9.97e-05,2]
[347567840,1735920649238,-1083.9231,9.97e-05,2]
[347567842,1735920649250,-500.0,9.978e-05,2]
[347567844,1735920649262,-500.0,9.978e-05,2]
[347567846,1735920649274,-1400.0,0.0001,3]
[347567848,1735920649285,-5813.16721248,0.0001,2]
[347567851,1735920649297,-5813.16721221,0.0001,2]
[347567853,1735920649309,-5813.16721221,0.0001,2]
[347567855,1735920649321,-5813.16721221,0.0001,2]
[347567857,1735920649332,-5813.16721221,0.0001,2]
[347567859,1735920649347,-5813.16721221,0.0001,2]
[347567862,1735920649359,-5813.16721221,0.0001,2]
[347567864,1735920649369,-5813.16721221,0.0001,2]
[347567866,1735920649380,-5813.16721221,0.00010003,2]
[347567868,1735920649392,-1280.93,0.00010016,2]
[347567870,1735920649404,-795.16,0.00010016,2]
[347567872,1735920649417,-1708.52,0.00010016,2]
[347567874,1735920649428,-1324.77,0.00010026,2]
[347567877,1735920649440,-500.0,0.00010026,2]
[347567878,1735920649452,-1021.03,0.00010026,2]
[347567881,1735920649463,-510.63,0.00010026,2]
[347567883,1735920649474,-722.22,0.00010026,2]
[347567885,1735920649486,-2712.06,0.00010026,2]
[347567887,1735920649497,-500.0,0.00010026,2]
[347567889,1735920649508,-500.0,0.00010026,2]
[347567892,1735920649520,-155.58,0.00010026,2]
[347567894,1735920649531,-593.27,0.00010026,2]
[347567896,1735920649542,-1364.52,0.00010026,2]
[347567898,1735920649552,-500.0,0.00010026,2]
[347567900,1735920649564,-500.0,0.00010026,2]
[347567902,1735920649575,-1104.94,0.00010026,2]
[347567904,1735920649586,-713.79,0.00010026,2]
[347567907,1735920649598,-1923.22,0.0001007,2]
[347567909,1735920649610,-641.65,0.0001007,2]
[347567911,1735920649621,-853.81,0.0001007,2]
[347567913,1735920649632,-863.63,0.0001007,2]
[347567915,1735920649644,-500.0,0.0001007,2]
[347567917,1735920649655,-1372.66,0.0001007,2]
[347567920,1735920649669,-628.67,0.0001007,2]
[347567922,1735920649680,-500.0,0.0001007,2]
[347567924,1735920649691,-720.35,0.00010137,2]
[347567926,1735920649702,-768.1,0.00010138,2]
[347567928,1735920649713,-500.0,0.00010138,2]
[347567930,1735920649724,-500.0,0.00010138,2]
[347567932,1735920649734,-788.1,0.00010138,2]
[347567935,1735920649746,-1734.99,0.00010138,2]
[347567937,1735920649757,-718.74,0.00010138,2]
[347567939,1735920649768,-960.66,0.00010138,2]
[347567941,1735920649779,-630.4,0.00010138,2]
[347567943,1735920649790,-1183.72,0.00010138,2]
[347567946,1735920649802,-1067.386128,0.00010138,2]
[347567948,1735920649812,-153.754165,0.00010138,2]
[347567950,1735920649823,-635.82,0.00010138,2]
[347567952,1735920649835,-1176.65,0.00010138,2]
[347567954,1735920649846,-500.0,0.00010138,2]
[347567957,1735920649858,-1791.62,0.00010138,2]
[347567959,1735920649869,-519.25,0.00010138,2]
[347567961,1735920649879,-1424.784331,0.00010138,2]
[347567963,1735920649890,-1520.01,0.00010138,2]
[347567965,1735920649902,-500.0,0.00010138,2]
[347567967,1735920649913,-500.0,0.00010138,2]
[347567970,1735920649927,-271.02,0.00010138,2]
[347567972,1735920649938,-500.0,0.00010138,2]
[347567974,1735920649949,-500.0,0.00010138,2]
[347567976,1735920649960,-500.0,0.00010138,2]
[347567978,1735920649971,-567.12,0.00010138,2]
[347567981,1735920649981,-500.0,0.00010138,2]
[347567983,1735920649992,-500.0,0.00010139,2]
[347567985,1735920650002,-500.0,0.00010139,2]
[347567987,1735920650014,-500.0,0.00010139,2]
[347567989,1735920650025,-158.45,0.00010139,2]
[347567991,1735920650035,-500.0,0.00010139,2]
[347567994,1735920650045,-500.0,0.00010139,2]
[347567996,1735920650058,-500.0,0.00010139,2]
[347567998,1735920650071,-500.0,0.00010139,2]
[347568000,1735920650081,-500.0,0.00010139,2]
[347568002,1735920650092,-500.0,0.00010139,2]
[347568004,1735920650102,-500.0,0.00010139,2]
[347568006,1735920650112,-500.0,0.00010139,2]
[347568008,1735920650122,-500.0,0.00010139,2]
[347568010,1735920650133,-500.0,0.00010139,2]
[347568012,1735920650143,-604.01,0.00010139,2]
[347568014,1735920650153,-500.0,0.00010139,2]
[347568017,1735920650164,-500.0,0.00010139,2]
[347568019,1735920650176,-500.0,0.00010139,2]
[347568021,1735920650191,-500.0,0.00010139,2]
[347568023,1735920650203,-500.0,0.00010139,2]
[347568025,1735920650214,-500.0,0.00010139,2]
[347568027,1735920650224,-500.0,0.00010139,2]
[347568029,1735920650235,-500.0,0.00010139,2]
[347568032,1735920650246,-500.0,0.00010139,2]
[347568034,1735920650256,-500.0,0.00010139,2]
[347568036,1735920650267,-500.0,0.00010139,2]
[347568038,1735920650279,-500.0,0.00010139,2]
[347568040,1735920650290,-500.0,0.00010139,2]
[347568042,1735920650301,-500.0,0.00010139,2]
[347568044,1735920650311,-500.0,0.00010139,2]
[347568047,1735920650323,-500.0,0.00010139,2]
[347568049,1735920650334,-500.0,0.00010139,2]
[347568051,1735920650345,-443.77,0.00010139,2]
[347568053,1735920650355,-500.0,0.00010139,2]
[347568055,1735920650367,-500.0,0.00010139,2]
[347568057,1735920650378,-500.0,0.00010139,2]
[347568060,1735920650390,-328.06,0.00010139,2]
[347568062,1735920650400,-500.0,0.00010139,2]
[347568064,1735920650411,-500.0,0.00010139,2]
[347568066,1735920650424,-321.56,0.00010139,2]
[347568068,1735920650435,-179.15232545,0.00010139,2]
[347568070,1735920650445,-552.29,0.00010139,2]
[347568072,1735920650456,-500.0,0.00010139,2]
[347568075,1735920650467,-500.0,0.00010139,2]
[347568077,1735920650478,-500.0,0.00010139,2]
[347568079,1735920650489,-706.83,0.00010139,2]
[347568081,1735920650499,-500.0,0.00010139,2]
[347568083,1735920650510,-383.39,0.00010139,2]
[347568085,1735920650520,-500.0,0.00010139,2]
[347568087,1735920650531,-500.0,0.00010139,2]
[347568089,1735920650541,-500.0,0.00010139,2]
[347568091,1735920650552,-500.0,0.00010139,2]
[347568093,1735920650563,-585.86,0.00010139,2]
[347568096,1735920650575,-500.0,0.00010139,2]
[347568098,1735920650586,-500.0,0.00010139,2]
[347568100,1735920650596,-500.0,0.00010139,2]
[347568102,1735920650606,-500.0,0.00010139,2]
[347568104,1735920650618,-500.0,0.00010139,2]
[347568144,1735920650629,-500.0,0.00010139,2]
[347568145,1735920651026,-614.26,0.00010139,2]
[347568146,1735920651048,-500.0,0.00010139,2]
[347568147,1735920651067,-551.82,0.00010139,2]
[347568148,1735920651077,-500.0,0.00010139,2]
[347568149,1735920651087,-500.0,0.00010139,2]
[347568151,1735920651097,-500.0,0.00010139,2]
[347568153,1735920651106,-500.0,0.00010139,2]
[347568155,1735920651115,-427.47,0.00010139,2]
[347568157,1735920651124,-500.0,0.00010139,2]
[347568159,1735920651133,-281.99,0.00010139,2]
[347568161,1735920651142,-654.15,0.00010139,2]
[347568163,1735920651151,-500.0,0.00010139,2]
[347568164,1735920651159,-500.0,0.00010139,2]
[347568166,1735920651171,-500.0,0.00010139,2]
[347568168,1735920651180,-539.81,0.00010139,2]
[347568170,1735920651189,-500.0,0.00010139,2]
[347568172,1735920651200,-500.0,0.00010139,2]
[347568174,1735920651209,-500.0,0.00010139,2]
[347568176,1735920651218,-500.0,0.00010139,2]
[347568178,1735920651227,-500.0,0.00010139,2]
[347568180,1735920651237,-500.0,0.00010139,2]
[347568182,1735920651246,-500.0,0.00010139,2]
[347568184,1735920651255,-500.0,0.00010139,2]
[347568186,1735920651264,-500.0,0.00010139,2]
[347568188,1735920651274,-500.0,0.00010139,2]
[347568190,1735920651283,-491.03353674,0.00010139,2]
[347568192,1735920651292,-665.42,0.00010139,2]
[347568194,1735920651301,-500.0,0.00010139,2]
[347568196,1735920651311,-500.0,0.00010139,2]
[347568198,1735920651319,-500.0,0.00010139,2]
[347568200,1735920651329,-500.0,0.00010139,2]
[347568202,1735920651338,-500.0,0.00010139,2]
[347568204,1735920651347,-1037.06,0.00010139,2]
[347568206,1735920651357,-500.0,0.00010139,2]
[347568208,1735920651367,-500.0,0.00010139,2]
[347568210,1735920651376,-805.79,0.00010139,2]
[347568212,1735920651385,-3679.18,0.00010139,2]
[347568214,1735920651395,-500.0,0.00010139,2]
[347568216,1735920651404,-500.0,0.00010139,2]
[347568218,1735920651414,-500.0,0.00010139,2]
[347568220,1735920651425,-500.0,0.00010139,2]
[347568222,1735920651435,-500.0,0.00010139,2]
[347568225,1735920651445,-500.0,0.00010139,2]
[347568227,1735920651454,-3247.25,0.00010139,2]
[347568229,1735920651464,-320.39,0.00010139,2]
[347568231,1735920651474,-500.0,0.00010139,2]
[347568233,1735920651483,-226.99308349,0.00010139,2]
[347568235,1735920651493,-500.0,0.00010139,2]
[347568237,1735920651503,-500.0,0.00010139,2]
[347568238,1735920651512,-500.0,0.00010139,2]
[347568240,1735920651522,-500.0,0.00010139,2]
[347568243,1735920651531,-392.85,0.00010139,2]
[347568245,1735920651541,-500.0,0.00010139,2]
[347568247,1735920651551,-263.72,0.00010139,2]
[347568249,1735920651560,-1890.49,0.00010139,2]
[347568251,1735920651570,-500.0,0.00010139,2]
[347568253,1735920651579,-500.0,0.00010139,2]
[347568255,1735920651590,-500.0,0.00010139,2]
[347568257,1735920651600,-1003.54,0.00010139,2]
[347568259,1735920651609,-500.0,0.00010139,2]
[347568260,1735920651619,-500.0,0.00010139,2]
[347568262,1735920651627,-500.0,0.00010139,2]
[347568264,1735920651638,-566.25,0.00010139,2]
[347568266,1735920651647,-500.0,0.00010139,2]
[347568268,1735920651657,-500.0,0.00010139,2]
[347568270,1735920651667,-1000.65,0.00010139,2]
[347568272,1735920651677,-276.4,0.00010139,2]
[347568275,1735920651686,-500.0,0.00010139,2]
[347568276,1735920651696,-500.0,0.00010139,2]
[347568278,1735920651705,-1907.21,0.00010139,2]
[347568280,1735920651715,-500.0,0.00010139,2]
[347568282,1735920651724,-500.0,0.00010139,2]
[347568284,1735920651733,-371.82,0.00010139,2]
[347568286,1735920651743,-582.22,0.00010139,2]
[347568288,1735920651752,-500.0,0.00010139,2]
[347568290,1735920651761,-500.0,0.00010139,2]
[347568292,1735920651770,-500.0,0.00010139,2]
[347568294,1735920651779,-500.0,0.00010139,2]
[347568296,1735920651789,-2353.53,0.00010139,2]
[347568298,1735920651798,-1965.81,0.00010139,2]
[347568300,1735920651808,-3206.61,0.00010139,2]
[347568302,1735920651817,-500.0,0.00010139,2]
[347568304,1735920651827,-500.0,0.00010139,2]
[347568306,1735920651835,-500.0,0.00010139,2]
[347568308,1735920651845,-500.0,0.00010139,2]
[347568310,1735920651854,-600.9,0.00010139,2]
[347568312,1735920651863,-500.0,0.00010139,2]
[347568314,1735920651873,-798.62,0.00010139,2]
[347568316,1735920651882,-500.0,0.00010139,2]
[347568318,1735920651891,-500.0,0.00010139,2]
[347568320,1735920651901,-538.84,0.00010139,2]
[347568322,1735920651911,-500.0,0.0001014,2]
[347568324,1735920651923,-500.0,0.0001014,2]
[347568326,1735920651932,-500.0,0.0001014,2]
[347568328,1735920651941,-500.0,0.0001014,2]
[347568330,1735920651951,-500.0,0.0001014,2]
[347568332,1735920651960,-500.0,0.0001014,2]
[347568334,1735920651970,-500.0,0.0001014,2]
[347568336,1735920651979,-500.0,0.0001014,2]
[347568338,1735920651988,-440.37,0.0001014,2]
[347568340,1735920651997,-500.0,0.0001014,2]
[347568342,1735920652007,-500.0,0.0001014,2]
[347568344,1735920652016,-500.0,0.0001014,2]
[347568346,1735920652025,-500.0,0.0001014,2]
[347568348,1735920652035,-500.0,0.0001014,2]
[347568350,1735920652044,-500.0,0.0001014,2]
[347568352,1735920652053,-500.0,0.0001014,2]
[347568354,1735920652062,-500.0,0.0001014,2]
[347568356,1735920652071,-500.0,0.0001014,2]
[347568357,1735920652081,-576.5,0.0001014,2]
[347568359,1735920652090,-849.16,0.0001014,2]
[347568361,1735920652099,-864.54,0.0001014,2]
[347568364,1735920652109,-1768.71,0.0001014,2]
[347568366,1735920652119,-500.0,0.0001014,2]
[347568368,1735920652128,-979.98,0.0001014,2]
[347568370,1735920652137,-3231.62,0.0001014,2]
[347568372,1735920652147,-1050.79,0.0001014,2]
[347568374,1735920652157,-1684.23,0.0001014,2]
[347568375,1735920652168,-1281.84,0.0001014,2]
[347568377,1735920652178,-786.12,0.0001014,2]
[347568380,1735920652188,-500.0,0.0001014,2]
[347568381,1735920652200,-1902.76,0.0001014,2]
[347568383,1735920652209,-1794.52,0.00010141,2]
[347568386,1735920652219,-2214.82,0.00010141,2]
[347568388,1735920652228,-3042.37,0.00010141,2]
[347568389,1735920652238,-500.0,0.00010141,2]
[347568391,1735920652247,-630.43,0.00010141,2]
[347568393,1735920652256,-626.51,0.00010141,2]
[347568395,1735920652267,-500.0,0.00010141,2]
[347568397,1735920652276,-500.0,0.00010141,2]
[347568399,1735920652285,-507.2,0.00010141,2]
[347568401,1735920652294,-500.0,0.00010141,2]
[347568403,1735920652303,-351.06,0.00010141,2]
[347568405,1735920652312,-763.22,0.00010141,2]
[347568407,1735920652322,-377.89,0.00010141,2]
[347568409,1735920652332,-500.0,0.00010141,2]
[347568412,1735920652341,-500.0,0.00010141,2]
[347568414,1735920652351,-500.0,0.00010141,2]
[347568415,1735920652362,-500.0,0.00010141,2]
[347568417,1735920652371,-768.06,0.00010141,2]
[347568419,1735920652380,-500.0,0.00010141,2]
[347568421,1735920652389,-1863.65,0.00010141,2]
[347568423,1735920652398,-500.0,0.00010141,2]
[347568425,1735920652408,-760.86,0.00010141,2]
[347568427,1735920652418,-500.0,0.00010141,2]
[347568429,1735920652427,-500.0,0.00010141,2]
[347568431,1735920652437,-1000.0,0.00010141,2]
[347568433,1735920652447,-500.0,0.00010141,2]
[347568435,1735920652457,-500.0,0.00010141,2]
[347568437,1735920652466,-500.0,0.00010141,2]
[347568439,1735920652476,-660.62,0.00010141,2]
[347568441,1735920652485,-1269.03,0.00010141,2]
[347568443,1735920652494,-500.0,0.00010141,2]
[347568445,1735920652504,-617.59,0.00010141,2]
[347568447,1735920652514,-481.17,0.00010141,2]
[347568450,1735920652524,-500.0,0.00010141,2]
[347568452,1735920652533,-1663.26,0.00010141,2]
[347568454,1735920652543,-474.5,0.00010141,2]
[347568456,1735920652552,-500.0,0.00010141,2]
[347568458,1735920652562,-583.96,0.00010141,2]
[347568460,1735920652571,-682.7,0.00010141,2]
[347568462,1735920652580,-1892.32,0.00010141,2]
[347568464,1735920652590,-883.1,0.00010141,2]
[347568466,1735920652599,-5813.16721221,0.00010141,2]
[347568468,1735920652608,-1500.0,0.00010204,2]
[347568470,1735920652617,-953.22278584,0.00010214,2]
[347568472,1735920652627,-10000.0,0.00010245,2]
[347568474,1735920652636,-858.9046,0.00010245,2]
[347568476,1735920652646,-5813.16721221,0.00010279,2]
[347568478,1735920652655,-1280.93,0.0001029,2]
[347568480,1735920652665,-795.16,0.0001029,2]
[347568482,1735920652677,-1708.52,0.0001029,2]
[347568484,1735920652686,-1324.77,0.000103,2]
[347568486,1735920652696,-500.0,0.000103,2]
[347568488,1735920652705,-1021.03,0.000103,2]
[347568490,1735920652714,-510.63,0.000103,2]
[347568492,1735920652724,-722.22,0.000103,2]
[347568494,1735920652733,-2712.06,0.000103,2]
[347568496,1735920652743,-500.0,0.000103,2]
[347568498,1735920652753,-500.0,0.000103,2]
[347568500,1735920652762,-593.27,0.000103,2]
[347568502,1735920652772,-1364.52,0.000103,2]
[347568504,1735920652781,-500.0,0.000103,2]
[347568506,1735920652790,-500.0,0.000103,2]
[347568508,1735920652800,-1104.94,0.000103,2]
[347568510,1735920652809,-713.79,0.000103,2]
[347568512,1735920652818,-84981.6075,0.00010314,2]
[347568514,1735920652827,-1000.0,0.00010314,2]
[347568516,1735920652836,-1923.22,0.00010344,2]
[347568518,1735920652846,-641.65,0.00010344,2]
[347568520,1735920652856,-853.81,0.00010344,2]
[347568522,1735920652865,-863.63,0.00010344,2]
[347568524,1735920652875,-500.0,0.00010344,2]
[347568526,1735920652884,-1372.66,0.00010344,2]
[347568528,1735920652894,-628.67,0.00010344,2]
[347568530,1735920652903,-500.0,0.00010344,2]
[347568532,1735920652913,-1126.95,0.00010396,2]
[347568534,1735920652924,-768.1,0.00010412,2]
[347568536,1735920652933,-500.0,0.00010412,2]
[347568538,1735920652943,-500.0,0.00010412,2]
[347568540,1735920652952,-788.1,0.00010412,2]
[347568542,1735920652962,-1734.99,0.00010412,2]
[347568544,1735920652971,-718.74,0.00010412,2]
[347568546,1735920652981,-960.66,0.00010412,2]
[347568548,1735920652990,-630.4,0.00010412,2]
[347568550,1735920653000,-1183.72,0.00010412,2]
[347568552,1735920653009,-1067.386128,0.00010412,2]
[347568554,1735920653018,-635.82,0.00010412,2]
[347568556,1735920653027,-1176.65,0.00010412,2]
[347568557,1735920653037,-500.0,0.00010412,2]
[347568558,1735920653047,-1791.62,0.00010412,2]
[347568559,1735920653056,-519.25,0.00010412,2]
[347568560,1735920653065,-1424.784331,0.00010412,2]
[347568561,1735920653075,-1520.01,0.00010412,2]
[347568562,1735920653084,-500.0,0.00010412,2]
[347568563,1735920653094,-500.0,0.00010412,2]
[347568564,1735920653103,-500.0,0.00010412,2]
[347568565,1735920653113,-500.0,0.00010412,2]
[347568566,1735920653123,-500.0,0.00010412,2]
[347568567,1735920653132,-567.12,0.00010412,2]
[347568568,1735920653142,-500.0,0.00010412,2]
[347568569,1735920653151,-500.0,0.00010413,2]
[347568570,1735920653161,-500.0,0.00010413,2]
[347568571,1735920653172,-500.0,0.00010413,2]
[347568572,1735920653182,-500.0,0.00010413,2]
[347568573,1735920653191,-500.0,0.00010413,2]
[347568574,1735920653203,-500.0,0.00010413,2]
[347568575,1735920653212,-406.98,0.00010413,2]